bitfinex/quotes_SOLUSD_20241107
["timestamp","ask_amount","ask_price","bid_price","bid_amount"]
[1731001920747,0.1,195.11,195.1,20.0]
[1731001921351,0.1,195.11,195.08,7.58648449]
[1731001921643,0.2,195.13,195.1,10.06705808]
[1731001921853,0.2,195.13,195.12,10.06705808]
[1731001922226,0.1,195.11,195.1,20.0]
[1731001922426,0.2,195.13,195.1,20.0]
[1731001922747,0.2,195.13,195.12,10.06705808]
[1731001923050,0.1,195.13,195.12,10.06705808]
[1731001923625,15.2535,195.14,195.12,10.06705808]
[1731001923825,0.1,195.15,195.13,10.06705808]
[1731001924027,0.1,195.18,195.1,60.26823232]
[1731001924028,0.1,195.18,195.15,20.0]
[1731001924236,0.1,195.18,195.17,10.06705808]
[1731001924439,16.1905,195.24,195.18,43.776884]
[1731001924647,0.1,195.26,195.18,43.776884]
[1731001924648,0.1,195.26,195.23,10.06705808]
[1731001924824,0.1,195.26,195.19,7.58648449]
[1731001924825,0.2,195.26,195.25,10.06705808]
[1731001925539,0.1,195.27,195.25,10.06705808]
[1731001925744,16.3905,195.29,195.26,10.06705808]
[1731001925936,0.1,195.28,195.21,43.776884]
[1731001926140,0.1,195.28,195.27,10.06705808]
[1731001926333,16.2905,195.29,195.27,10.06705808]
[1731001926535,16.2905,195.29,195.28,10.06705808]
[1731001927058,16.3905,195.29,195.27,10.06705808]
[1731001927270,0.1,195.28,195.27,30.06705808]
[1731001927557,0.1,195.28,195.27,35.70817999]
[1731001928456,16.2905,195.29,195.27,35.70817999]
[1731001928647,16.2905,195.29,195.28,15.70817999]
[1731001929147,0.1,195.29,195.28,15.70817999]
[1731001929348,0.1,195.29,195.28,35.70817999]
[1731001929562,16.0281,195.34,195.29,20.0]
[1731001929749,0.1,195.32,195.29,20.0]
[1731001930135,15.9281,195.34,195.31,15.70817999]
[1731001930443,15.9281,195.34,195.29,20.0]
[1731001930444,0.1,195.33,195.3,23.776884]
[1731001930641,0.1,195.33,195.32,35.70817999]
[1731001930950,0.1,195.34,195.32,35.70817999]
[1731001931248,0.1,195.34,195.33,15.70817999]
[1731001931455,0.1,195.35,195.33,15.70817999]
[1731001931661,0.1,195.35,195.34,59.48506399]
[1731001932654,19.73956784,195.38,195.34,59.48506399]
[1731001932655,0.1,195.37,195.34,59.48506399]
[1731001932854,0.1,195.37,195.36,15.70817999]
[1731001933033,3.91146784,195.38,195.36,15.70817999]
[1731001933232,3.91146784,195.38,195.34,43.776884]
[1731001933233,0.1,195.37,195.34,43.776884]
[1731001933534,0.1,195.37,195.36,15.70817999]
[1731001933731,0.1,195.36,195.35,15.70817999]
[1731001934139,0.2,195.37,195.34,15.70817999]
[1731001934451,0.1,195.35,195.34,20.0]
[1731001934657,0.1,195.35,195.34,35.70817999]
[1731001935047,0.1,195.36,195.34,35.70817999]
[1731001935244,0.1,195.35,195.3,35.70817999]
[1731001935429,0.1,195.35,195.34,35.70817999]
[1731001936533,0.1,195.35,195.34,15.70817999]
[1731001936848,0.1,195.35,195.34,59.48506399]
[1731001937656,0.1,195.35,195.34,35.70817999]
[1731001938356,0.1,195.3,195.22,70.0]
[1731001938563,0.1,195.3,195.17,8.6449]
[1731001938564,0.1,195.3,195.29,15.70817999]
[1731001938858,0.1,195.33,195.3,0.12549]
[1731001939034,0.1,195.33,195.32,15.70817999]
[1731001939659,0.1,195.34,195.33,43.776884]
[1731001939851,0.1,195.34,195.33,59.48506399]
[1731001941059,0.1,195.34,195.33,35.70817999]
[1731001941561,0.1,195.36,195.34,43.776884]
[1731001941741,0.1,195.36,195.35,15.70817999]
[1731001942150,0.1,195.35,195.34,35.70817999]
[1731001942741,0.1,195.34,195.33,35.70817999]
[1731001943552,0.2,195.36,195.34,20.0]
[1731001943852,0.1,195.35,195.34,20.0]
[1731001944055,0.2,195.35,195.34,20.0]
[1731001944247,0.1,195.35,195.34,20.0]
[1731001944455,0.1,195.35,195.34,20.12549]
[1731001945371,0.1,195.35,195.34,35.83366999]
[1731001945657,0.1,195.36,195.34,35.83366999]
[1731001945866,0.1,195.36,195.35,15.70817999]
[1731001946159,0.1,195.36,195.34,15.83366999]
[1731001946366,0.1,195.35,195.34,35.83366999]
[1731001947345,0.1,195.36,195.34,59.61055399]
[1731001947540,0.1,195.36,195.35,15.70817999]
[1731001948152,0.1,195.37,195.35,39.48506399]
[1731001948360,3.81146784,195.38,195.37,20.0]
[1731001948361,3.91146784,195.38,195.37,20.0]
[1731001948559,3.81146784,195.38,195.37,35.70817999]
[1731001948764,3.81146784,195.38,195.37,59.48506399]
[1731001949367,3.81146784,195.38,195.37,43.776884]
[1731001949556,3.81146784,195.38,195.37,53.81877282]
[1731001951967,0.5628262,195.4,195.39,113.776884]
[1731001952141,0.1,195.46,195.45,30.04188882]
[1731001952341,10.06871878,195.47,195.45,30.04188882]
[1731001952342,10.16871878,195.47,195.45,10.04188882]
[1731001952563,10.16871878,195.47,195.46,10.04188882]
[1731001953455,10.16871878,195.47,195.46,15.67685275]
[1731001954258,0.1,195.45,195.44,35.67685275]
[1731001954464,0.1,195.42,195.4,43.776884]
[1731001954658,0.1,195.42,195.41,59.45373675]
[1731001954855,0.1,195.42,195.41,15.67685275]
[1731001955065,0.1,195.42,195.41,35.67685275]
[1731001955266,0.1,195.42,195.41,15.67685275]
[1731001955679,0.1,195.41,195.4,15.67685275]
[1731001955872,0.1,195.41,195.39,23.26333724]
[1731001956170,0.1,195.4,195.39,7.71197449]
[1731001956555,0.1,195.4,195.39,7.58648449]
[1731001956871,0.1,195.4,195.39,7.71197449]
[1731001957766,0.2,195.4,195.39,23.26333724]
[1731001957971,0.1,195.39,195.38,15.67685275]
[1731001958148,0.1,195.4,195.38,15.67685275]
[1731001958348,0.1,195.4,195.39,15.67685275]
[1731001959351,0.1,195.4,195.39,15.80234275]
[1731001959553,0.1,195.41,195.4,23.776884]
[1731001959766,0.1,195.43,195.4,39.45373675]
[1731001959963,0.1,195.45,195.42,15.67685275]
[1731001960175,0.1,195.45,195.4,23.776884]
[1731001960176,0.1,195.44,195.4,7.58648449]
[1731001960371,0.1,195.42,195.41,39.45373675]
[1731001960759,0.1,195.43,195.41,39.45373675]
[1731001961282,0.1,195.43,195.41,15.67685275]
[1731001961572,0.1,195.42,195.41,15.67685275]
[1731001961966,0.1,195.45,195.41,15.67685275]
[1731001961967,0.1,195.44,195.41,15.67685275]
[1731001962160,0.1,195.44,195.42,15.67685275]
[1731001962575,0.1,195.43,195.42,15.67685275]
[1731001962875,0.1,195.42,195.4,23.26333724]
[1731001963086,0.1,195.41,195.4,23.26333724]
[1731001963375,0.1,195.41,195.4,47.04022124]
[1731001963880,0.1,195.41,195.4,23.26333724]
[1731001964963,0.1,195.41,195.4,15.67685275]
[1731001965978,0.1,195.4,195.39,15.80234275]
[1731001966478,0.1,195.4,195.39,15.67685275]
[1731001967055,0.1,195.4,195.39,15.80234275]
[1731001967677,0.1,195.41,195.39,15.80234275]
[1731001967874,0.1,195.41,195.4,15.67685275]
[1731001970887,0.1,195.42,195.4,15.67685275]
[1731001971089,0.1,195.42,195.41,15.67685275]
[1731001971281,0.2,195.42,195.41,15.67685275]
[1731001971484,0.2,195.42,195.4,15.67685275]
[1731001971485,0.1,195.41,195.4,15.67685275]
[1731001972293,0.2,195.4,195.39,15.67685275]
[1731001972676,0.2,195.4,195.38,15.67685275]
[1731001972990,0.1,195.39,195.38,15.67685275]
[1731001973199,0.2,195.36,195.33,15.67685275]
[1731001973376,0.1,195.34,195.33,15.67685275]
[1731001973569,0.1,195.35,195.33,15.67685275]
[1731001973570,0.2,195.35,195.33,15.67685275]
[1731001973772,0.1,195.34,195.33,15.80234275]
[1731001974177,0.1,195.34,195.3,2.45297196]
[1731001974178,0.2,195.34,195.32,15.67685275]
[1731001974371,0.1,195.34,195.32,15.67685275]
[1731001974571,0.1,195.35,195.33,15.80234275]
[1731001974772,0.1,195.34,195.33,15.80234275]
[1731001974987,0.1,195.36,195.33,15.80234275]
[1731001975180,0.1,195.36,195.35,15.67685275]
[1731001975398,0.1,195.36,195.35,10.04426568]
[1731001975699,0.2,195.36,195.35,10.04426568]
[1731001975875,0.1,195.36,195.35,10.04426568]
[1731001976184,0.2,195.36,195.35,10.04426568]
[1731001976371,0.2,195.36,195.34,10.04426568]
[1731001976574,16.0813,195.43,195.34,10.04426568]
[1731001976575,0.1,195.41,195.35,80.04426568]
[1731001976776,0.1,195.41,195.4,33.82114968]
[1731001977494,0.1,195.41,195.4,39.461019]
[1731001977792,0.1,195.4,195.39,15.684135]
[1731001977995,0.2,195.41,195.39,15.684135]
[1731001978195,0.1,195.41,195.35,76.55857431]
[1731001978403,0.1,195.41,195.4,39.461019]
[1731001978581,0.1,195.42,195.41,23.776884]
[1731001978781,0.1,195.42,195.41,39.461019]
[1731001979917,0.1,195.42,195.41,15.684135]
[1731001980213,0.1,195.42,195.41,39.461019]
[1731001983402,25.20441878,195.47,195.42,23.776884]
[1731001983585,0.1,195.46,195.44,23.776884]
[1731001983785,0.1,195.45,195.44,23.776884]
[1731001984104,0.1,195.46,195.44,23.776884]
[1731001984483,0.1,195.46,195.45,15.684135]
[1731001984683,0.1,195.46,195.45,39.461019]
[1731001985905,0.1,195.44,195.43,39.461019]
[1731001986088,0.1,195.44,195.43,15.684135]
[1731001986289,10.16871878,195.47,195.44,23.776884]
[1731001986596,0.1,195.46,195.45,15.684135]
[1731001987104,0.1,195.44,195.43,0.07]
[1731001987300,0.1,195.44,195.43,15.754135]
[1731001988087,0.1,195.45,195.43,15.754135]
[1731001988283,0.1,195.45,195.44,15.684135]
[1731001989495,0.2,195.45,195.44,15.684135]
[1731001991505,0.1,195.45,195.44,15.684135]
[1731001991689,0.2,195.45,195.44,15.684135]
[1731001991892,0.1,195.45,195.44,15.684135]
[1731001992408,0.2,195.45,195.44,15.684135]
[1731001992604,0.1,195.45,195.44,15.684135]
[1731001992906,0.2,195.45,195.44,15.684135]
[1731001993109,0.1,195.45,195.44,15.684135]
[1731001993911,0.1,195.46,195.44,15.684135]
[1731001994090,0.1,195.46,195.45,15.684135]
[1731001994289,10.26871878,195.47,195.45,15.684135]
[1731001994491,10.16871878,195.47,195.46,15.684135]
[1731001994899,10.26871878,195.47,195.46,15.684135]
[1731001996508,0.1,195.46,195.44,15.684135]
[1731001996896,10.16871878,195.47,195.45,39.461019]
[1731001997298,0.1,195.46,195.45,39.461019]
[1731001997497,10.16871878,195.47,195.45,39.461019]
[1731001997716,0.1,195.46,195.45,39.461019]
[1731001997897,0.1,195.43,195.42,15.754135]
[1731001998299,0.1,195.43,195.42,15.879625]
[1731001998621,0.1,195.44,195.42,15.879625]
[1731001998918,0.2,195.45,195.43,15.684135]
[1731001999094,0.2,195.45,195.44,15.684135]
[1731001999496,0.2,195.45,195.44,10.03521807]
[1731001999803,0.1,195.45,195.44,10.03521807]
[1731002000002,0.1,195.44,195.42,0.12549]
[1731002000207,0.1,195.44,195.43,10.03521807]
[1731002000625,0.2,195.44,195.43,10.03521807]
[1731002001109,0.1,195.44,195.43,10.03521807]
[1731002001511,0.1,195.46,195.43,10.03521807]
[1731002001716,0.1,195.46,195.45,10.03521807]
[1731002001717,0.2,195.46,195.45,10.03521807]
[1731002001898,0.1,195.46,195.45,10.03521807]
[1731002002511,0.2,195.46,195.45,10.03521807]
[1731002003397,10.26871878,195.47,195.45,10.03521807]
[1731002003619,10.26871878,195.47,195.46,10.03521807]
[1731002004809,0.2,195.46,195.42,20.12549]
[1731002005024,0.2,195.46,195.45,10.03521807]
[1731002006117,0.1,195.46,195.45,10.03521807]
[1731002006902,0.2,195.45,195.42,20.12549]
[1731002007098,0.2,195.45,195.44,30.03521807]
[1731002007616,0.1,195.44,195.37,20.0]
[1731002007820,0.1,195.44,195.43,10.03521807]
[1731002007821,0.2,195.44,195.43,10.03521807]
[1731002008031,0.1,195.45,195.43,10.16070807]
[1731002008409,0.1,195.45,195.44,23.776884]
[1731002008601,0.1,195.45,195.44,33.81210207]
[1731002010024,0.1,195.46,195.44,33.81210207]
[1731002010212,0.1,195.46,195.45,33.81210207]
[1731002011215,0.2,195.46,195.45,23.776884]
[1731002011411,0.2,195.46,195.45,10.03521807]
[1731002012501,0.1,195.43,195.37,33.0763288]
[1731002012729,0.1,195.44,195.43,20.0]
[1731002013026,0.1,195.44,195.43,30.03521807]
[1731002013323,0.2,195.45,195.43,30.03521807]
[1731002013526,0.1,195.44,195.41,20.12549]
[1731002014025,0.2,195.45,195.43,10.03521807]
[1731002014238,0.2,195.45,195.44,10.03521807]
[1731002015509,0.2,195.46,195.44,10.03521807]
[1731002015708,0.1,195.45,195.44,23.776884]
[1731002016411,0.1,195.46,195.45,43.776884]
[1731002016817,0.1,195.46,195.45,53.81210207]
[1731002017730,0.2,195.46,195.41,22.51449815]
[1731002017920,0.2,195.46,195.45,30.03521807]
[1731002018406,0.1,195.46,195.45,53.81210207]
[1731002020314,10.16871878,195.47,195.46,23.776884]
[1731002020522,10.16871878,195.47,195.46,33.81210207]
[1731002022833,10.06871878,195.47,195.46,53.81210207]
[1731002023213,10.16871878,195.47,195.46,53.81210207]
[1731002024212,10.26871878,195.47,195.46,30.03521807]
[1731002024733,0.1,195.44,195.4,2.42200684]
[1731002024913,0.1,195.42,195.41,0.07]
[1731002025420,0.1,195.43,195.41,0.07]
[1731002025421,0.2,195.43,195.41,0.07]
[1731002025733,0.1,195.42,195.41,0.07]
[1731002026118,0.2,195.43,195.41,10.10521807]
[1731002026314,0.1,195.43,195.42,30.03521807]
[1731002026820,0.2,195.43,195.42,30.03521807]
[1731002027015,0.2,195.43,195.4,40.14087228]
[1731002027228,0.1,195.41,195.4,20.0]
[1731002027417,0.1,195.43,195.42,0.12549]
[1731002027932,0.2,195.44,195.42,0.12549]
[1731002028136,0.1,195.43,195.42,0.12549]
[1731002028315,0.1,195.43,195.42,53.93759207]
[1731002028828,0.2,195.43,195.42,20.0]
[1731002029141,0.1,195.41,195.4,0.07]
[1731002029315,0.1,195.41,195.4,70.24609035]
[1731002029516,0.1,195.42,195.41,20.0]
[1731002029721,0.2,195.42,195.41,30.03521807]
[1731002030741,10.16871878,195.47,195.42,23.776884]
[1731002030922,10.06871878,195.47,195.46,10.03521807]
[1731002031128,10.06871878,195.47,195.46,46.88843087]
[1731002031129,10.16871878,195.47,195.46,46.88843087]
[1731002031530,10.06871878,195.47,195.46,40.37067638]
[1731002031737,10.16871878,195.47,195.46,40.37067638]
[1731002032337,0.1,195.46,195.44,23.776884]
[1731002032647,0.1,195.46,195.45,53.81210207]
[1731002033220,10.16871878,195.47,195.45,53.81210207]
[1731002033440,10.06871878,195.47,195.46,33.81210207]
[1731002033839,10.16871878,195.47,195.46,33.81210207]
[1731002034340,10.06871878,195.47,195.46,23.776884]
[1731002034537,10.06871878,195.47,195.46,33.81210207]
[1731002034739,16.0236,195.52,195.46,33.81210207]
[1731002034740,0.2,195.49,195.47,23.776884]
[1731002034949,0.1,195.48,195.47,23.776884]
[1731002035336,0.1,195.47,195.46,43.776884]
[1731002036447,0.1,195.47,195.46,53.81210207]
[1731002037332,0.2,195.47,195.42,20.0]
[1731002037541,0.1,195.47,195.46,30.03521807]
[1731002037719,0.2,195.47,195.46,30.03521807]
[1731002037925,0.1,195.45,195.42,43.776884]
[1731002038135,0.1,195.45,195.44,53.81210207]
[1731002038425,0.1,195.46,195.44,53.81210207]
[1731002038942,0.1,195.46,195.45,23.776884]
[1731002039323,0.1,195.46,195.44,20.0]
[1731002039324,0.2,195.46,195.41,2.39871613]
[1731002039532,16.0236,195.52,195.4,0.07]
[1731002039533,0.2,195.43,195.4,40.21087228]
[1731002039744,0.1,195.43,195.41,0.12549]
[1731002040459,0.1,195.43,195.42,10.03521807]
[1731002040628,0.1,195.43,195.42,30.03521807]
[1731002041148,0.2,195.44,195.42,30.03521807]
[1731002041332,0.1,195.43,195.42,43.776884]
[1731002041537,0.1,195.43,195.42,53.81210207]
[1731002041947,0.2,195.44,195.42,53.81210207]
[1731002042429,0.1,195.43,195.42,53.81210207]
[1731002042953,0.2,195.44,195.42,53.81210207]
[1731002043140,0.1,195.43,195.42,43.776884]
[1731002043341,0.2,195.44,195.42,53.81210207]
[1731002043529,0.1,195.43,195.42,43.776884]
[1731002043733,0.1,195.44,195.43,23.776884]
[1731002043948,0.1,195.44,195.43,33.81210207]
[1731002044739,0.1,195.39,195.33,70.0]
[1731002044941,0.2,195.4,195.38,10.16070807]
[1731002045262,0.1,195.44,195.39,10.03521807]
[1731002045432,0.1,195.42,195.39,7.42707985]
[1731002045838,0.1,195.42,195.38,77.20745179]
[1731002046158,0.1,195.42,195.41,30.03521807]
[1731002047351,0.1,195.45,195.41,30.03521807]
[1731002047557,16.4814,195.46,195.44,10.03521807]
[1731002047760,0.1,195.46,195.45,10.03521807]
[1731002048261,0.1,195.46,195.45,33.81210207]
[1731002049563,0.2,195.49,195.46,43.776884]
[1731002049757,0.1,195.48,195.46,43.776884]
[1731002050252,0.1,195.47,195.46,43.776884]
[1731002051245,0.1,195.47,195.46,53.81210207]
[1731002052149,0.2,195.49,195.46,53.81210207]
[1731002052337,0.1,195.47,195.46,43.776884]
[1731002052536,0.2,195.48,195.46,43.776884]
[1731002052741,0.1,195.47,195.46,43.776884]
[1731002052943,0.2,195.47,195.41,22.39435136]
[1731002053241,0.1,195.47,195.43,20.07]
[1731002053451,0.1,195.47,195.46,30.16070807]
[1731002054335,0.1,195.47,195.46,53.93759207]
[1731002054550,0.2,195.48,195.47,23.776884]
[1731002054759,0.2,195.47,195.46,20.12549]
[1731002055059,0.2,195.47,195.46,30.16070807]
[1731002057742,0.2,195.47,195.46,0.12549]
[1731002057943,0.2,195.47,195.46,10.16070807]
[1731002058166,0.1,195.44,195.4,2.42297739]
[1731002058353,0.1,195.44,195.43,33.81210207]
[1731002058559,0.2,195.44,195.43,33.93759207]
[1731002058740,0.2,195.44,195.43,10.16070807]
[1731002059947,0.2,195.44,195.43,30.16070807]
[1731002062559,0.1,195.44,195.43,53.93759207]
[1731002064570,0.1,195.45,195.44,43.776884]
[1731002064757,0.1,195.45,195.44,53.81210207]
[1731002065151,0.2,195.45,195.44,20.0]
[1731002065362,0.2,195.45,195.44,10.03521807]
[1731002065551,0.2,195.43,195.41,20.0]
[1731002065750,0.2,195.43,195.42,30.16070807]
[1731002066468,0.1,195.43,195.42,30.16070807]
[1731002066668,0.2,195.43,195.42,53.93759207]
[1731002066977,0.1,195.43,195.42,53.93759207]
[1731002067477,0.2,195.43,195.42,53.93759207]
[1731002067652,0.1,195.43,195.42,53.93759207]
[1731002068554,0.1,195.44,195.43,20.0]
[1731002068752,0.2,195.44,195.43,53.81210207]
[1731002069659,0.1,195.44,195.43,53.81210207]
[1731002069872,0.2,195.44,195.43,53.81210207]
[1731002070368,0.2,195.44,195.42,0.12549]
[1731002070551,0.1,195.43,195.42,0.12549]
[1731002071367,0.2,195.43,195.42,30.16070807]
[1731002071865,0.1,195.49,195.46,20.0]
[1731002072053,0.2,195.48,195.47,43.776884]
[1731002072258,0.2,195.48,195.47,53.81210207]
[1731002073657,0.2,195.48,195.47,30.03521807]
[1731002074057,0.2,195.48,195.47,29.53521807]
[1731002074378,15.3056,195.51,195.42,0.12549]
[1731002074379,0.1,195.46,195.42,23.902374]
[1731002075555,0.2,195.47,195.42,23.902374]
[1731002075761,0.1,195.47,195.42,23.902374]
[1731002075963,0.2,195.48,195.42,23.902374]
[1731002076163,0.2,195.48,195.44,23.776884]
[1731002076371,0.1,195.47,195.46,23.776884]
[1731002076571,0.2,195.47,195.46,43.776884]
[1731002076963,0.2,195.48,195.46,43.776884]
[1731002077175,0.1,195.47,195.46,43.776884]
[1731002077475,0.2,195.48,195.47,43.776884]
[1731002081164,0.1,195.48,195.47,43.776884]
[1731002081580,0.2,195.49,195.48,23.776884]
[1731002083484,0.2,195.49,195.47,20.0]
[1731002083689,0.2,195.48,195.47,20.0]
[1731002086873,0.1,195.48,195.47,43.776884]
[1731002087185,0.2,195.49,195.47,43.776884]
[1731002087384,0.1,195.48,195.47,43.776884]
[1731002087564,0.2,195.49,195.47,43.776884]
[1731002088569,0.1,195.49,195.48,23.776884]
[1731002088768,0.2,195.49,195.48,43.776884]
[1731002088989,0.1,195.49,195.48,43.776884]
[1731002089284,0.2,195.49,195.48,43.776884]
[1731002089493,0.1,195.49,195.48,43.776884]
[1731002090766,0.2,195.5,195.49,20.0]
[1731002091093,0.2,195.5,195.49,43.776884]
[1731002091765,0.2,195.48,195.45,2.42321483]
[1731002091983,0.1,195.48,195.43,20.0]
[1731002092186,0.2,195.48,195.43,20.0]
[1731002092581,0.1,195.49,195.45,20.0]
[1731002092890,0.1,195.48,195.46,23.776884]
[1731002093091,0.1,195.49,195.47,20.0]
[1731002093274,0.2,195.49,195.48,20.0]
[1731002093476,0.2,195.49,195.48,43.776884]
[1731002093688,0.2,195.5,195.49,43.776884]
[1731002094577,0.1,195.5,195.49,43.776884]
[1731002094892,5.8411,195.55,195.5,23.776884]
[1731002097371,0.5628262,195.59,195.53,20.0]
[1731002097589,0.5628262,195.59,195.54,30.85884579]
[1731002097780,0.5628262,195.59,195.54,23.776884]
[1731002098393,0.5628262,195.59,195.55,20.0]
[1731002099675,0.0999,195.65,195.57,20.0]
[1731002099886,0.0999,195.65,195.6,23.776884]
[1731002100280,0.0999,195.65,195.63,20.0]
[1731002100481,0.0999,195.65,195.64,23.776884]
[1731002102077,0.0999,195.65,195.63,20.0]
[1731002102304,0.1,195.76,195.64,27.08196179]
[1731002102499,0.2,195.76,195.65,23.776884]
[1731002102808,0.2,195.76,195.65,23.846884]
[1731002102977,0.2,195.75,195.65,23.846884]
[1731002103299,21.8884,195.74,195.65,0.07]
[1731002103490,21.7884,195.74,195.65,0.07]
[1731002103692,21.2884,195.74,195.65,0.07]
[1731002104009,21.1884,195.74,195.65,31.54655614]
[1731002105300,21.1884,195.74,195.65,23.846884]
[1731002107509,15.3936,195.74,195.66,70.0]
[1731002107799,15.3936,195.74,195.67,23.776884]
[1731002108216,25.42453349,195.74,195.68,23.776884]
[1731002108798,15.3936,195.74,195.68,23.776884]
[1731002109298,15.3936,195.74,195.67,23.776884]
[1731002109998,25.42453349,195.74,195.67,23.776884]
[1731002110389,25.42453349,195.74,195.68,0.07]
[1731002111994,10.03093349,195.73,195.67,23.776884]
[1731002112302,10.03093349,195.72,195.66,23.776884]
[1731002112604,0.1,195.76,195.66,23.776884]
[1731002112605,10.03093349,195.71,195.67,0.07]
[1731002112806,10.03093349,195.71,195.67,0.19549]
[1731002113108,10.03093349,195.71,195.67,0.12549]
[1731002113684,6.9746262,195.78,195.65,7.08196179]
[1731002113685,0.1,195.66,195.65,7.08196179]
[1731002113880,0.1,195.65,195.52,2.37711847]
[1731002114088,10.03093349,195.59,195.53,7.08196179]
[1731002114493,10.03093349,195.58,195.53,7.08196179]
[1731002115506,6.3834,195.6,195.54,0.12549]
[1731002115803,6.3834,195.6,195.55,7.08196179]
[1731002116108,16.41433349,195.6,195.55,7.08196179]
[1731002116300,10.03093349,195.61,195.55,7.08196179]
[1731002116889,10.03093349,195.6,195.55,7.08196179]
[1731002117089,15.195,195.63,195.55,7.08196179]
[1731002117293,10.03093349,195.61,195.55,7.08196179]
[1731002117487,10.03093349,195.6,195.55,7.08196179]
[1731002118390,15.195,195.63,195.55,7.08196179]
[1731002118711,10.03093349,195.61,195.55,7.08196179]
[1731002119521,15.195,195.63,195.55,7.08196179]
[1731002119816,15.195,195.63,195.58,23.776884]
[1731002120219,25.22593349,195.63,195.58,23.776884]
[1731002120424,6.6396,195.65,195.58,23.776884]
[1731002120737,10.03093349,195.65,195.58,30.85884579]
[1731002121619,15.6579,195.68,195.58,30.85884579]
[1731002122000,10.03093349,195.63,195.58,30.85884579]
[1731002122809,0.1,195.71,195.58,30.85884579]
[1731002123101,10.03093349,195.66,195.6,23.776884]
[1731002124414,10.03093349,195.69,195.61,43.776884]
[1731002124596,43.06379153,195.91,195.67,30.144584]
[1731002124597,0.1,195.8,195.67,30.144584]
[1731002124799,0.1,195.8,195.69,23.776884]
[1731002124800,10.03093349,195.76,195.69,23.776884]
[1731002125104,0.2,195.8,195.69,23.776884]
[1731002125105,10.03093349,195.75,195.69,23.776884]
[1731002125608,10.03093349,195.74,195.69,23.776884]
[1731002125801,0.1,195.79,195.68,7.08196179]
[1731002125802,10.03093349,195.73,195.68,7.08196179]
[1731002126000,10.03093349,195.72,195.63,43.776884]
[1731002126220,10.03093349,195.73,195.65,43.776884]
[1731002126526,22.3192,195.77,195.65,51.03324556]
[1731002126700,10.03093349,195.73,195.67,23.776884]
[1731002127716,10.03093349,195.72,195.67,23.776884]
[1731002128605,10.03093349,195.7,195.66,7.08196179]
[1731002129008,25.55353349,195.67,195.66,7.08196179]
[1731002129229,0.1,195.65,195.54,0.88812669]
[1731002129607,10.03093349,195.61,195.54,0.88812669]
[1731002130326,10.03093349,195.6,195.54,0.88812669]
[1731002130538,10.03093349,195.6,195.51,6.68871179]
[1731002130539,10.03093349,195.59,195.51,6.68871179]
[1731002130767,0.1,195.64,195.52,7.1652279]
[1731002130904,0.1,195.62,195.52,6.27652267]
[1731002131110,10.03093349,195.58,195.52,6.27652267]
[1731002131310,15.66509463,195.58,195.53,0.12549]
[1731002132020,15.66509463,195.58,195.51,6.68871179]
[1731002132216,15.66509463,195.58,195.52,0.12549]
[1731002132418,0.1,195.65,195.52,0.12549]
[1731002132419,15.66509463,195.57,195.52,23.902374]
[1731002132736,21.7771,195.67,195.52,23.902374]
[1731002132737,15.66509463,195.58,195.52,6.81420179]
[1731002132922,15.66509463,195.59,195.52,6.81420179]
[1731002133232,15.66509463,195.58,195.52,6.81420179]
[1731002133728,21.7771,195.67,195.58,70.0]